fUSD/lending_fUSD_20260408
["ID","MTS","AMOUNT","RATE_DAILY","PERIOD"]
[420035648,1775627106705,150.0,0.00010496,2]
[420035649,1775627106756,150.0,0.00010532,2]
[420035650,1775627106819,150.0,0.00010568,2]
[420035651,1775627106889,150.0,0.00010604,2]
[420035652,1775627106959,150.0,0.00010639,2]
[420035653,1775627107048,150.0,0.00010675,2]
[420035654,1775627110026,150.0,0.00010282,2]
[420035655,1775627110060,150.0,0.00010334,2]
[420035656,1775627110090,150.0,0.00010386,2]
[420035657,1775627110119,150.0,0.00010438,2]
[420035658,1775627110179,150.0,0.0001049,2]
[420035659,1775627110225,150.0,0.00010542,2]
[420035660,1775627110256,150.0,0.00010594,2]
[420035661,1775627110285,150.0,0.00010646,2]
[420035662,1775627110322,150.0,0.00010698,2]
[420035663,1775627110544,150.0,0.00010282,2]
[420035664,1775627110596,150.0,0.00010332,2]
[420035665,1775627110630,150.0,0.00010382,2]
[420035666,1775627110665,150.0,0.00010431,2]
[420035667,1775627110719,150.0,0.00010481,2]
[420035668,1775627110749,150.0,0.00010531,2]
[420035669,1775627110779,150.0,0.0001058,2]
[420035670,1775627110809,150.0,0.0001063,2]
[420035671,1775627110840,150.0,0.0001068,2]
[420035674,1775627115006,150.0,0.00010282,2]
[420035675,1775627115079,150.0,0.00010386,2]
[420035676,1775627115141,150.0,0.0001049,2]
[420035677,1775627115211,50.01,0.00010594,2]
[420035678,1775627115235,99.99,0.00010594,2]
[420035679,1775627115286,150.0,0.00010698,2]
[420035680,1775627117577,150.0,0.00010282,2]
[420035681,1775627117642,150.0,0.00010445,2]
[420035682,1775627118419,150.0,0.00010609,2]
[420035684,1775627123533,150.0,0.00010282,2]
[420035685,1775627123632,150.0,0.00010282,2]
[420035686,1775627124203,150.0,0.00010282,2]
[420035687,1775627124292,150.0,0.00010282,2]
[420035688,1775627124329,150.0,0.00010339,2]
[420035689,1775627124374,150.0,0.00010368,2]
[420035690,1775627124408,150.0,0.00010396,2]
[420035691,1775627124436,150.0,0.00010425,2]
[420035692,1775627124473,150.0,0.00010454,2]
[420035693,1775627124501,150.0,0.00010482,2]
[420035694,1775627124540,150.0,0.00010511,2]
[420035695,1775627124570,150.0,0.00010539,2]
[420035696,1775627124624,150.0,0.00010568,2]
[420035697,1775627124769,150.0,0.00010625,2]
[420035698,1775627124834,150.0,0.00010596,2]
[420035699,1775627124890,150.0,0.00010653,2]
[420035700,1775627124968,150.0,0.00010682,2]
[420035701,1775627125180,150.0,0.00010311,2]
[420035702,1775627133207,150.0,0.00010282,2]
[420035703,1775627133268,150.0,0.00010332,2]
[420035704,1775627133351,150.0,0.00010382,2]
[420035705,1775627133444,150.0,0.00010431,2]
[420035706,1775627133482,150.0,0.00010481,2]
[420035707,1775627133557,150.0,0.00010531,2]
[420035708,1775627133627,150.0,0.0001058,2]
[420035709,1775627133697,150.0,0.0001063,2]
[420035710,1775627133790,150.0,0.0001068,2]
[420035711,1775627134965,319.18482678,0.00010613,2]
[420035712,1775627137151,500.0,0.00010576,2]
[420035713,1775627137195,150.0,0.00010282,2]
[420035714,1775627137231,500.0,0.00010576,2]
[420035715,1775627137260,150.0,0.00010386,2]
[420035716,1775627137331,150.0,0.0001049,2]
[420035717,1775627137374,500.0,0.00010576,2]
[420035718,1775627137471,500.0,0.00010576,2]
[420035719,1775627137517,150.0,0.00010594,2]
[420035720,1775627137562,500.0,0.00010576,2]
[420035721,1775627137592,150.0,0.00010698,2]
[420035722,1775627137621,500.0,0.00010576,2]
[420035723,1775627137672,243.76457116,0.00010576,2]
[420035724,1775627137753,500.0,0.00010576,2]
[420035725,1775627137789,500.0,0.00010576,2]
[420035726,1775627138334,500.0,0.00010576,2]
[420035727,1775627138377,500.0,0.00010576,2]
[420035728,1775627138505,500.0,0.00010576,2]
[420035729,1775627138537,500.0,0.00010576,2]
[420035730,1775627138572,150.0,0.00010282,2]
[420035731,1775627138624,150.0,0.00010319,2]
[420035732,1775627138655,500.0,0.00010576,2]
[420035733,1775627138692,500.0,0.00010576,2]
[420035734,1775627138762,150.0,0.00010356,2]
[420035735,1775627138798,150.0,0.00010576,2]
[420035736,1775627138831,150.0,0.00010393,2]
[420035737,1775627138875,500.0,0.00010576,2]
[420035738,1775627138909,500.0,0.00010576,2]
[420035739,1775627138939,150.0,0.0001043,2]
[420035740,1775627139019,106.24542884,0.00010466,2]
[420035741,1775627139043,43.75457116,0.00010466,2]
[420035742,1775627139076,150.0,0.00010503,2]
[420035743,1775627139122,500.0,0.00010576,2]
[420035744,1775627139161,150.0,0.0001054,2]
[420035745,1775627139214,150.0,0.00010577,2]
[420035746,1775627139243,501.37015049,0.00010576,2]
[420035747,1775627139280,150.0,0.00010614,2]
[420035748,1775627139313,500.0,0.00010576,2]
[420035749,1775627139342,150.0,0.00010651,2]
[420035750,1775627139420,150.0,0.00010688,2]
[420035751,1775627139448,150.0,0.00010576,2]
[420035752,1775627139542,500.0,0.00010576,2]
[420035753,1775627139655,500.0,0.00010576,2]
[420035754,1775627139706,500.0,0.00010576,2]
[420035755,1775627139760,500.0,0.00010576,2]
[420035756,1775627139869,500.0,0.00010576,2]
[420035757,1775627140187,500.0,0.00010576,2]
[420035758,1775627140359,500.0,0.00010576,2]
[420035759,1775627140504,500.0,0.00010576,2]
[420035760,1775627140957,500.0,0.00010576,2]
[420035761,1775627141710,500.0,0.00010576,2]
[420035764,1775627185437,152.7979958,0.00010576,2]
[420035766,1775627267402,334.47874813,0.00010613,2]
[420035767,1775627268333,4665.53125187,0.00010612,2]
[420035768,1775627268361,5000.01,0.00010612,2]
[420035769,1775627268389,5000.01,0.00010612,2]
[420035770,1775627268415,5000.01,0.00010612,2]
[420035771,1775627268442,5000.01,0.00010612,2]
[420035772,1775627268469,5000.01,0.00010612,2]
[420035773,1775627277320,-4030.83517322,0.00010612,2]
[420035774,1775627277501,-5000.01,0.00010612,2]
[420035775,1775627277719,-5000.01,0.00010612,2]
[420035776,1775627277924,-5000.01,0.00010612,2]
[420035777,1775627278086,-5000.01,0.00010612,2]
[420035778,1775627278236,-5000.01,0.00010612,2]
[420035779,1775627280478,-5000.01,0.00010612,2]
[420035780,1775627280659,-5000.01,0.00010612,2]
[420035781,1775627281787,-5000.01,0.00010612,2]
[420035782,1775627281862,300.0,0.00010611,2]
[420035783,1775627281928,164.0,0.00010611,2]
[420035784,1775627282331,150.0,0.00010611,2]
[420035785,1775627282380,300.0,0.00010611,2]
[420035786,1775627282405,-5000.01,0.00010612,2]
[420035787,1775627282436,-5000.01,0.00010612,2]
[420035788,1775627282450,-5000.01,0.00010612,2]
[420035789,1775627283696,-5000.01,0.00010612,2]
[420035790,1775627286413,-5000.01,0.00010612,2]
[420035791,1775627286571,-5000.01,0.00010612,2]
[420035792,1775627289418,-5000.01,0.00010612,2]
[420035794,1775627312804,500.0,0.00010611,2]
[420035795,1775627312866,151.73669555,0.00010611,2]
[420035796,1775627312960,500.0,0.00010611,2]
[420035797,1775627313014,240.42512308,0.00010611,2]
[420035798,1775627313799,500.0,0.00010611,2]
[420035799,1775627313854,500.0,0.00010611,2]
[420035800,1775627313900,609.91190056,0.00010611,2]
[420035801,1775627316968,500.11526413,0.00010611,2]
[420035802,1775627317111,307.59217209,0.00010611,2]
[420035803,1775627317223,909.12085386,0.00010611,2]
[420035804,1775627317268,909.12085386,0.00010611,2]
[420035805,1775627317309,909.12085386,0.00010611,2]
[420035806,1775627317358,909.12085386,0.00010611,2]
[420035807,1775627317398,909.12085386,0.00010611,2]
[420035808,1775627317445,730.62457529,0.00010611,2]
[420035809,1775627317480,178.49627857,0.00010611,2]
[420035810,1775627317521,909.12085386,0.00010611,2]
[420035811,1775627317564,909.12085386,0.00010611,2]
[420035812,1775627317636,909.12085386,0.00010611,2]
[420035813,1775627317691,909.12085386,0.00010611,2]
[420035814,1775627317738,909.12085386,0.00010611,2]
[420035815,1775627317793,909.12085386,0.00010611,2]
[420035816,1775627317835,909.12085386,0.00010611,2]
[420035817,1775627317879,909.12085386,0.00010611,2]
[420035818,1775627317930,909.12085386,0.00010611,2]
[420035819,1775627317984,909.12085386,0.00010611,2]
[420035820,1775627318024,730.30518283,0.00010611,2]
[420035821,1775627318053,178.81567103,0.00010611,2]
[420035822,1775627318098,909.12085386,0.00010611,2]
[420035823,1775627318139,909.12085386,0.00010611,2]
[420035824,1775627318184,909.12085386,0.00010611,2]
[420035825,1775627318247,909.12085386,0.00010611,2]
[420035826,1775627318308,909.12085386,0.00010611,2]
[420035827,1775627318352,909.12085386,0.00010611,2]
[420035828,1775627318399,909.12085386,0.00010611,2]
[420035829,1775627318440,909.12085386,0.00010611,2]
[420035830,1775627318494,909.12085386,0.00010611,2]
[420035831,1775627318542,909.12085386,0.00010611,2]
[420035832,1775627318616,729.98579037,0.00010611,2]
[420035833,1775627318647,179.13506349,0.00010611,2]
[420035834,1775627318768,909.12085386,0.00010611,2]
[420035835,1775627318813,909.12085386,0.00010611,2]
[420035836,1775627318862,909.12085386,0.00010611,2]
[420035837,1775627318898,909.12085386,0.00010611,2]
[420035838,1775627318951,909.12085386,0.00010611,2]
[420035839,1775627319004,909.12085386,0.00010611,2]
[420035840,1775627319048,909.12085386,0.00010611,2]
[420035841,1775627319094,909.12085386,0.00010611,2]
[420035842,1775627319138,909.12085386,0.00010611,2]
[420035843,1775627319189,909.12085386,0.00010611,2]
[420035844,1775627319233,729.66639791,0.00010611,2]
[420035845,1775627319262,179.45445595,0.00010611,2]
[420035846,1775627319315,909.12085386,0.00010611,2]
[420035847,1775627319363,909.12085386,0.00010611,2]
[420035848,1775627319471,909.12085386,0.00010611,2]
[420035849,1775627319524,909.12085386,0.00010611,2]
[420035850,1775627319566,909.12085386,0.00010611,2]
[420035851,1775627319611,909.12085386,0.00010611,2]
[420035852,1775627319650,909.12085386,0.00010611,2]
[420035853,1775627319709,909.12085386,0.00010611,2]
[420035854,1775627319755,909.12085386,0.00010611,2]
[420035855,1775627320245,909.12085386,0.00010611,2]
[420035856,1775627320307,729.34700545,0.00010611,2]
[420035857,1775627320336,179.77384841,0.00010611,2]
[420035858,1775627320388,909.12085386,0.00010611,2]
[420035859,1775627320440,909.12085386,0.00010611,2]
[420035860,1775627320478,909.12085386,0.00010611,2]
[420035861,1775627320513,909.12085386,0.00010611,2]
[420035862,1775627320579,909.12085386,0.00010611,2]
[420035863,1775627320631,909.12085386,0.00010611,2]
[420035864,1775627320675,909.12085386,0.00010611,2]
[420035865,1775627320731,909.12085386,0.00010611,2]
[420035866,1775627320770,909.12085386,0.00010611,2]
[420035867,1775627320875,909.12085386,0.00010611,2]
[420035868,1775627320916,729.02761299,0.00010611,2]
[420035869,1775627320943,180.09324087,0.00010611,2]
[420035870,1775627332047,157.99,7.805e-05,2]
[420035871,1775627332247,157.99,9.756e-05,2]
[420035877,1775627341538,300.0,0.00010611,2]
[420035878,1775627342289,1200.0,0.00010611,2]
[420035879,1775627350215,150.0,0.00010576,2]
[420035880,1775627350302,195.51112262,0.00010576,2]
[420035881,1775627350410,150.0,0.00010576,2]
[420035882,1775627350581,500.0,0.00010576,2]
[420035883,1775627350641,500.0,0.00010576,2]
[420035884,1775627350726,500.0,0.00010576,2]
[420035885,1775627350796,500.0,0.00010576,2]
[420035886,1775627350877,500.0,0.00010576,2]
[420035887,1775627351006,500.0,0.00010576,2]
[420035888,1775627351175,500.0,0.00010576,2]
[420035889,1775627351330,500.0,0.00010576,2]
[420035890,1775627351506,500.0,0.00010576,2]
[420035891,1775627351649,500.0,0.00010576,2]
[420035892,1775627351806,500.0,0.00010576,2]
[420035893,1775627352005,381.23774932,0.00010576,2]
[420035905,1775627394434,260.0,0.0001057,2]
[420035906,1775627401129,300.0,0.00010611,2]
[420035907,1775627401159,1067.18788719,0.00010611,2]
[420035908,1775627401185,132.81211281,0.00010611,2]
[420035909,1775627401215,300.0,0.00010611,2]
[420035918,1775627414832,177.0455462,0.00010602,2]
[420035949,1775627442433,-8700.0,0.00010612,2]
[420035951,1775627442445,-1382603.43357491,0.00010612,2]
[420035953,1775627442456,-200.0,0.00010612,2]
[420035954,1775627442466,-304.0,0.00010612,2]
[420035956,1775627442476,-222.9858321,0.00010613,2]
[420035958,1775627442486,-212.78988452,0.00010613,2]
[420035960,1775627442496,-168.08863515,0.00010613,2]
[420035961,1775627442506,-593.97477054,0.00010697,2]
[420035964,1775627442516,-1007.321709,0.00010697,2]
[420035966,1775627442526,-1000.0,0.00010697,2]
[420035969,1775627442535,-5000.0,0.00010703,2]
[420035971,1775627442546,-250.0,0.00010703,2]
[420035974,1775627442556,-5000.0,0.00010704,2]
[420035977,1775627442566,-5000.0,0.00010704,2]
[420035978,1775627442576,-200.0,0.00010706,2]
[420035980,1775627442585,-151.0,0.00010706,2]
[420035981,1775627442595,-152.45672918,0.00010706,2]
[420035982,1775627442604,-151.0,0.00010706,2]
[420035983,1775627442613,-1199.20597015,0.00010706,2]
[420035984,1775627442623,-151.0,0.00010706,2]
[420035985,1775627442633,-151.0,0.00010706,2]
[420035986,1775627442642,-151.0,0.00010706,2]
[420035987,1775627442652,-151.0,0.00010706,2]
[420035988,1775627442662,-151.0,0.00010706,2]
[420035989,1775627442672,-151.0,0.00010706,2]
[420035990,1775627442682,-151.0,0.00010706,2]
[420035991,1775627442692,-155.45941456,0.00010706,2]
[420035992,1775627442702,-150.0,0.00010711,2]
[420035993,1775627442712,-150.0,0.00010711,2]
[420035994,1775627442722,-219963.48,0.00010711,2]
[420035995,1775627442732,-1621.24,0.00010711,2]
[420035996,1775627442742,-9999.99,0.00010711,2]
[420035997,1775627442752,-9999.99,0.00010711,2]
[420035998,1775627442762,-150.99,0.00010711,2]
[420035999,1775627442773,-299.99,0.00010711,2]
[420036000,1775627442783,-150.99,0.00010711,2]
[420036001,1775627442793,-1142.41,0.00010711,2]
[420036002,1775627442803,-14148.83,0.00010711,2]
[420036003,1775627442813,-999.99,0.00010711,2]
[420036004,1775627442822,-1138.4,0.00010711,2]
[420036005,1775627442832,-499.99,0.00010711,2]
[420036006,1775627442841,-500.0,0.00010712,2]
[420036007,1775627442851,-14114.9,0.00010712,2]
[420036008,1775627442860,-649.62,0.00010712,2]
[420036009,1775627442870,-272.286,0.00010712,2]
[420036010,1775627442880,-4218.514,0.00010712,2]
[420036011,1775627442890,-2487685.28096366,0.00010713,2]
[420036012,1775627442900,-150.0,0.00010713,2]
[420036013,1775627442910,-151.0,0.00010713,2]
[420036014,1775627442920,-151.0,0.00010713,2]
[420036015,1775627442930,-200.0,0.00010718,2]
[420036016,1775627442941,-150.0,0.00010724,2]
[420036017,1775627442954,-150.0,0.00010729,2]
[420036018,1775627442965,-150.0,0.00010729,2]
[420036019,1775627442975,-150.0,0.00010739,2]
[420036020,1775627442986,-150.0,0.00010746,2]
[420036021,1775627442997,-150.0,0.0001075,2]
[420036022,1775627443007,-150.0,0.00010761,2]
[420036023,1775627443017,-150.0,0.00010768,2]
[420036024,1775627443027,-150.0,0.00010772,2]
[420036025,1775627443037,-501.16240007,0.00010773,2]
[420036026,1775627443047,-500.0,0.00010773,2]
[420036028,1775627443057,-500.0,0.00010773,2]
[420036030,1775627443067,-500.7116693,0.00010773,2]
[420036032,1775627443077,-500.0,0.00010773,2]
[420036033,1775627443087,-500.0,0.00010773,2]
[420036035,1775627443099,-500.0,0.00010773,2]
[420036036,1775627443109,-500.0,0.00010773,2]
[420036037,1775627443119,-164.45663059,0.00010773,2]
[420036038,1775627443130,-246.25716228,0.00010773,2]
[420036039,1775627443140,-200.08326476,0.00010773,2]
[420036040,1775627443151,-500.0,0.00010773,2]
[420036041,1775627443162,-500.22085293,0.00010773,2]
[420036042,1775627443173,-500.0,0.00010773,2]
[420036043,1775627443184,-500.0,0.00010773,2]
[420036044,1775627443195,-281.88719221,0.00010773,2]
[420036045,1775627443208,-169.66281329,0.00010773,2]
[420036046,1775627443219,-500.0,0.00010773,2]
[420036047,1775627443230,-500.0,0.00010773,2]
[420036048,1775627443240,-500.0,0.00010773,2]
[420036049,1775627443250,-500.0,0.00010773,2]
[420036050,1775627443261,-500.0,0.00010773,2]
[420036051,1775627443271,-500.0,0.00010773,2]
[420036052,1775627443282,-170.15582469,0.00010773,2]
[420036053,1775627443293,-500.0,0.00010773,2]
[420036054,1775627443304,-150.0,0.00010779,2]
[420036055,1775627443315,-150.0,0.00010779,2]
[420036056,1775627443325,-150.0,0.00010782,2]
[420036057,1775627443336,-150.0,0.00010796,2]
[420036060,1775627443346,-150.0,0.00010798,2]
[420036061,1775627443357,-150.0,0.00010801,2]
[420036062,1775627443366,-150.0,0.00010801,2]
[420036063,1775627443376,-150.0,0.00010801,2]
[420036064,1775627443387,-150.0,0.00010818,2]
[420036065,1775627443398,-150.0,0.00010825,2]
[420036066,1775627443409,-200.0,0.00010825,2]
[420036067,1775627443420,-150.0,0.00010829,2]
[420036068,1775627443430,-150.0,0.00010829,2]
[420036069,1775627443440,-150.0,0.00010835,2]
[420036070,1775627443451,-1902.0,0.00010836,2]
[420036071,1775627443462,-265.0,0.00010836,2]
[420036072,1775627443472,-250.0,0.00010844,2]
[420036073,1775627443482,-150.0,0.00010853,2]
[420036074,1775627443493,-150.0,0.00010853,2]
[420036075,1775627443502,-150.0,0.00010853,2]
[420036076,1775627443513,-150.0,0.00010853,2]
[420036077,1775627443523,-1944.0,0.00010857,2]
[420036078,1775627443534,-189.0,0.00010857,2]
[420036079,1775627443545,-426.0,0.00010865,2]
[420036080,1775627443556,-150.0,0.00010872,2]
[420036081,1775627443566,-160.0,0.00010877,2]
[420036082,1775627443577,-257.410034,0.00010877,2]
[420036083,1775627443587,-354.820069,0.00010877,2]
[420036084,1775627443598,-150.0,0.00010878,2]
[420036085,1775627443608,-150.0,0.00010878,2]
[420036086,1775627443619,-1669.0,0.00010879,2]
[420036087,1775627443629,-150.0,0.00010882,2]
[420036088,1775627443640,-150.0,0.00010889,2]
[420036089,1775627443651,-1000.0,0.00010892,2]
[420036090,1775627443662,-5361.57423732,0.000109,2]
[420036091,1775627443672,-209.0,0.00010901,2]
[420036092,1775627443683,-150.0,0.00010905,2]
[420036093,1775627443694,-150.0,0.00010905,2]
[420036094,1775627443706,-150.0,0.00010905,2]
[420036095,1775627443716,-150.0,0.00010909,2]
[420036096,1775627443727,-150.0,0.00010911,2]
[420036097,1775627443737,-156.22357131,0.00010918,2]
[420036098,1775627443747,-601.0,0.00010922,2]
[420036099,1775627443758,-150.0,0.00010925,2]
[420036100,1775627443769,-150.0,0.00010928,2]
[420036101,1775627443779,-150.0,0.00010928,2]
[420036102,1775627443790,-200.0,0.00010934,2]
[420036103,1775627443801,-150.0,0.00010935,2]
[420036104,1775627443811,-150.0,0.00010939,2]
[420036105,1775627443822,-601.0,0.00010944,2]
[420036106,1775627443832,-150.0,0.00010946,2]
[420036107,1775627443844,-150.0,0.00010957,2]
[420036108,1775627443855,-500.0,0.00010959,2]
[420036109,1775627443865,-150.0,0.00010959,2]
[420036110,1775627443876,-455.55,0.0001096,2]
[420036111,1775627443887,-150.0,0.00010961,2]
[420036112,1775627443898,-160.0,0.00010961,2]
[420036114,1775627443908,-874.756586,0.00010961,2]
[420036115,1775627443919,-1589.513173,0.00010961,2]
[420036116,1775627443929,-299.172477,0.00010961,2]
[420036117,1775627443940,-160.0,0.00010961,2]
[420036118,1775627443950,-1752.898527,0.00010961,2]
[420036119,1775627443960,-3345.797055,0.00010961,2]
[420036120,1775627443970,-232.085316,0.00010961,2]
[420036121,1775627443980,-160.0,0.00010961,2]
[420036122,1775627443991,-1723.279097,0.00010961,2]
[420036123,1775627444001,-3286.558194,0.00010961,2]
[420036124,1775627444011,-169.887783,0.00010961,2]
[420036125,1775627444021,-1285.0,0.00010965,2]
[420036126,1775627444032,-150.0,0.00010968,2]
[420036127,1775627444042,-150.0,0.00010978,2]
[420036128,1775627444052,-150.0,0.00010978,2]
[420036129,1775627444064,-150.0,0.00010982,2]
[420036130,1775627444074,-500.0,0.00010986,2]
[420036131,1775627444084,-649.62,0.00010986,2]
[420036132,1775627444094,-924.0,0.00010987,2]
[420036133,1775627444103,-150.0,0.00010996,2]
[420036134,1775627444113,-150.0,0.00010996,2]
[420036135,1775627444123,-400.0,0.00011008,2]
[420036136,1775627444133,-150.0,0.00011009,2]
[420036137,1775627444143,-150.0,0.00011009,2]
[420036138,1775627444153,-150.0,0.00011009,2]
[420036139,1775627444163,-150.0,0.00011019,2]
[420036140,1775627444173,-150.0,0.00011025,2]
[420036141,1775627444183,-150.0,0.00011027,2]
[420036142,1775627444193,-150.0,0.00011027,2]
[420036143,1775627444203,-150.0,0.00011032,2]
[420036144,1775627444212,-200.0,0.00011043,2]
[420036145,1775627444223,-150.0,0.00011053,2]
[420036146,1775627444233,-150.0,0.00011056,2]
[420036147,1775627444244,-150.0,0.00011061,2]
[420036148,1775627444255,-150.0,0.00011068,2]
[420036149,1775627444265,-150.0,0.00011077,2]
[420036150,1775627444275,-150.0,0.00011077,2]
[420036151,1775627444285,-150.0,0.00011082,2]
[420036152,1775627444295,-150.0,0.00011093,2]
[420036153,1775627444305,-150.0,0.00011098,2]
[420036154,1775627444314,-11199.96690187,0.00011099,2]
[420036155,1775627444324,-11199.96690183,0.00011099,2]
[420036156,1775627444334,-151.502,0.00011099,2]
[420036157,1775627444343,-150.0,0.00011103,2]
[420036158,1775627444353,-150.0,0.0001111,2]
[420036159,1775627444363,-150.0,0.00011113,2]
[420036160,1775627444372,-150.0,0.00011113,2]
[420036161,1775627444382,-150.0,0.00011113,2]
[420036162,1775627444393,-2000.0,0.00011113,2]
[420036163,1775627444403,-150.0,0.00011127,2]
[420036164,1775627444414,-150.0,0.00011127,2]
[420036166,1775627444423,-150.0,0.0001113,2]
[420036167,1775627444434,-150.0,0.00011139,2]
[420036169,1775627444444,-150.0,0.00011139,2]
[420036170,1775627444453,-150.0,0.00011165,2]
[420036171,1775627444465,-150.0,0.00011167,2]
[420036172,1775627444475,-150.0,0.00011168,2]
[420036173,1775627444485,-150.0,0.00011175,2]
[420036174,1775627444495,-150.0,0.00011176,2]
[420036175,1775627444504,-150.0,0.00011176,2]
[420036176,1775627444514,-3277.8,0.00011191,2]
[420036177,1775627444524,-150.0,0.00011196,2]
[420036178,1775627444534,-150.0,0.00011202,2]
[420036179,1775627444544,-150.0,0.00011204,2]
[420036180,1775627444553,-150.0,0.0001121,2]
[420036181,1775627444563,-150.0,0.00011217,2]
[420036182,1775627444573,-150.0,0.00011217,2]
[420036183,1775627444582,-150.0,0.00011217,2]
[420036184,1775627444592,-150.0,0.00011225,2]
[420036185,1775627444602,-150.0,0.00011226,2]
[420036186,1775627444612,-150.0,0.00011226,2]
[420036187,1775627444622,-150.0,0.00011233,2]
[420036188,1775627444632,-150.0,0.0001124,2]
[420036189,1775627444643,-150.0,0.00011246,2]
[420036190,1775627444652,-150.0,0.00011253,2]
[420036191,1775627444662,-200.0,0.00011254,2]
[420036192,1775627444673,-1243.57659104,0.00011254,2]
[420036193,1775627444682,-500.0,0.0001126,2]
[420036194,1775627444692,-649.62,0.0001126,2]
[420036195,1775627444702,-150.0,0.00011261,2]
[420036196,1775627444712,-150.0,0.00011269,2]
[420036197,1775627444722,-150.0,0.00011276,2]
[420036198,1775627444732,-150.0,0.00011276,2]
[420036199,1775627444743,-150.0,0.00011277,2]
[420036200,1775627444753,-150.0,0.00011282,2]
[420036201,1775627444763,-150.0,0.00011282,2]
[420036202,1775627444772,-150.0,0.0001131,2]
[420036203,1775627444782,-150.0,0.00011314,2]
[420036204,1775627444793,-150.0,0.00011318,2]
[420036205,1775627444803,-1000.87166627,0.00011321,2]
[420036206,1775627444813,-1000.0,0.00011321,2]
[420036207,1775627444823,-1000.0,0.00011321,2]
[420036208,1775627444833,-1000.0,0.00011321,2]
[420036209,1775627444843,-500.5739136,0.00011321,2]
[420036210,1775627444853,-1000.0,0.00011321,2]
[420036211,1775627444863,-500.53661767,0.00011321,2]
[420036212,1775627444873,-1000.0,0.00011321,2]
[420036213,1775627444884,-1000.0,0.00011321,2]
[420036214,1775627444894,-502.49539828,0.00011321,2]
[420036215,1775627444904,-455.42271784,0.00011321,2]
[420036216,1775627444914,-501.51019132,0.00011321,2]
[420036217,1775627444923,-1000.0,0.00011321,2]
[420036218,1775627444933,-1000.0,0.00011321,2]
[420036219,1775627444943,-1000.0,0.00011321,2]
[420036220,1775627444952,-1000.54232895,0.00011321,2]
[420036221,1775627444962,-150.0,0.00011321,2]
[420036222,1775627444972,-150.0,0.00011321,2]
[420036223,1775627444982,-150.0,0.00011321,2]
[420036224,1775627444991,-150.0,0.00011325,2]
[420036225,1775627445001,-150.0,0.00011325,2]
[420036226,1775627445011,-150.0,0.00011339,2]
[420036227,1775627445020,-150.0,0.00011351,2]
[420036228,1775627445030,-150.0,0.00011353,2]
[420036229,1775627445040,-150.0,0.00011368,2]
[420036230,1775627445050,-150.0,0.00011373,2]
[420036231,1775627445059,-150.0,0.00011375,2]
[420036232,1775627445069,-150.0,0.00011375,2]
[420036233,1775627445078,-150.0,0.00011388,2]